bitfinex/quotes_BTCUSD_20241223
["timestamp","ask_amount","ask_price","bid_price","bid_amount"]
[1734976445296,0.214301,93327.0,93324.0,8.57e-05]
[1734976445733,0.15,93336.0,93324.0,8.57e-05]
[1734976445904,0.15,93351.0,93324.0,0.0020857]
[1734976446108,0.15,93345.0,93326.0,0.0497]
[1734976446325,0.15,93345.0,93336.0,0.214279]
[1734976446534,0.15,93345.0,93328.0,0.214297]
[1734976446739,0.15,93345.0,93336.0,0.214279]
[1734976447352,0.214227,93359.0,93341.0,0.214268]
[1734976447750,0.214235,93356.0,93341.0,0.214268]
[1734976447952,0.428486,93352.0,93336.0,0.214279]
[1734976448200,0.428486,93352.0,93340.0,0.21427]
[1734976448601,0.214243,93352.0,93340.0,0.21427]
[1734976448807,0.214217,93364.0,93341.0,0.14991245]
[1734976449009,0.0755,93380.0,93341.0,0.30021235]
[1734976449216,0.0755,93395.0,93374.0,0.214192]
[1734976449429,0.289644,93395.0,93374.0,0.214192]
[1734976449628,0.214158,93389.0,93372.0,0.214196]
[1734976449840,0.214183,93378.0,93364.0,0.0498]
[1734976450041,0.214183,93378.0,93359.0,0.214225]
[1734976450261,0.214183,93378.0,93355.0,0.214234]
[1734976450262,0.214176,93381.0,93360.0,0.0428459]
[1734976450385,0.214186,93377.0,93360.0,0.0428459]
[1734976450585,0.214186,93377.0,93360.0,0.043006]
[1734976450789,0.0755,93395.0,93360.0,0.257229]
[1734976450790,0.214192,93374.0,93360.0,0.257229]
[1734976451011,0.214192,93374.0,93360.0,0.2143831]
[1734976451012,0.214194,93373.0,93360.0,0.2143831]
[1734976451419,0.214164,93386.0,93361.0,0.214222]
[1734976451624,0.15,93385.0,93372.0,0.214195]
[1734976451854,0.15,93385.0,93372.0,0.428391]
[1734976452174,0.15,93385.0,93374.0,0.002]
[1734976452376,0.000171,93392.0,93374.0,0.10398632]
[1734976452571,0.214323,93392.0,93374.0,0.10505707]
[1734976452779,0.000171,93392.0,93374.0,0.10398632]
[1734976453380,0.000171,93392.0,93374.0,0.10698632]
[1734976453581,0.000171,93392.0,93374.0,0.15715707]
[1734976453954,0.000171,93392.0,93374.0,0.61786248]
[1734976454180,0.000171,93392.0,93391.0,0.314153]
[1734976454533,0.000171,93392.0,93391.0,0.44113932]
[1734976454758,0.000171,93392.0,93391.0,0.34113932]
[1734976455142,0.000171,93392.0,93391.0,0.44113932]
[1734976455374,0.000171,93392.0,93391.0,0.53908545]
[1734976455564,0.000171,93392.0,93391.0,0.78908545]
[1734976455762,0.005171,93392.0,93391.0,0.96391513]
[1734976455905,0.00492401,93392.0,93391.0,0.96391513]
[1734976456149,0.00492401,93392.0,93391.0,0.96291513]
[1734976456349,0.00492401,93392.0,93391.0,1.01087997]
[1734976456557,0.00492401,93392.0,93391.0,1.01187997]
[1734976456955,0.0001714,93418.0,93414.0,0.2141]
[1734976457183,0.00033147,93418.0,93416.0,0.214096]
[1734976457396,0.00033147,93418.0,93417.0,0.10505656]
[1734976457585,0.00033147,93418.0,93417.0,0.22698632]
[1734976457785,0.00033147,93418.0,93417.0,0.50281485]
[1734976457959,0.00033147,93418.0,93417.0,0.65281485]
[1734976458384,0.000171,93443.0,93442.0,0.214036]
[1734976458587,0.00070435,93443.0,93442.0,0.214036]
[1734976458966,0.00070435,93443.0,93442.0,0.34102232]
[1734976459337,0.00013675,93443.0,93442.0,0.44287445]
[1734976459447,0.00013675,93443.0,93442.0,0.31802232]
[1734976460269,0.00213675,93443.0,93442.0,0.31802232]
[1734976460666,0.00013675,93443.0,93442.0,0.31802232]
[1734976461095,0.00213675,93443.0,93442.0,0.31802232]
[1734976461294,0.00213675,93443.0,93442.0,0.31902232]
[1734976461501,0.00013675,93443.0,93442.0,0.40867445]
[1734976461700,0.00413675,93443.0,93442.0,0.40867445]
[1734976461910,0.00413675,93443.0,93442.0,0.002]
[1734976462551,0.00413675,93443.0,93442.0,0.001]
[1734976462757,0.214036,93442.0,93427.0,0.214069]
[1734976462951,0.428073,93442.0,93421.0,0.214082]
[1734976463207,0.214038,93441.0,93423.0,0.21408]
[1734976463380,0.214038,93441.0,93425.0,0.214075]
[1734976464429,0.00613675,93443.0,93412.0,0.214104]
[1734976464636,0.21407,93428.0,93425.0,0.001]
[1734976465051,0.42814,93428.0,93425.0,0.001]
[1734976465202,0.214048,93437.0,93425.0,0.001]
[1734976465409,0.21408,93424.0,93408.0,0.214114]
[1734976465850,0.001,93428.0,93421.0,0.214082]
[1734976466060,0.214056,93434.0,93410.0,0.16253693]
[1734976466270,0.214066,93429.0,93417.0,0.214092]
[1734976466486,0.214056,93434.0,93417.0,0.214092]
[1734976466856,0.428114,93433.0,93425.0,0.002]
[1734976467241,0.214043,93439.0,93425.0,0.004]
[1734976467461,0.15,93436.0,93422.0,0.21408]
[1734976468100,0.01,93442.0,93423.0,0.00107032]
[1734976468297,0.214038,93441.0,93418.0,0.10505657]
[1734976468525,0.214038,93441.0,93425.0,0.001]
[1734976468894,0.428077,93441.0,93421.0,0.214084]
[1734976469098,0.428077,93441.0,93423.0,0.21408]
[1734976469410,0.01,93442.0,93422.0,0.003]
[1734976469743,0.214043,93439.0,93423.0,0.21408]
[1734976470275,0.011,93442.0,93424.0,0.15750135]
[1734976470489,0.01,93442.0,93441.0,0.214038]
[1734976470892,0.011,93442.0,93441.0,0.214038]
[1734976471524,0.01,93442.0,93441.0,0.214038]
[1734976471646,0.01,93442.0,93441.0,0.31802432]
[1734976471844,0.01,93442.0,93441.0,0.32702432]
[1734976472200,0.01,93442.0,93441.0,0.214038]
[1734976472389,0.002,93442.0,93441.0,0.214038]
[1734976472797,0.000171,93451.0,93446.0,0.214026]
[1734976472995,0.00033091,93451.0,93446.0,0.214026]
[1734976473545,0.000171,93456.0,93446.0,0.2569324]
[1734976473942,0.000171,93456.0,93446.0,0.2569334]
[1734976474348,0.000171,93456.0,93446.0,0.2589334]
[1734976474523,0.000171,93456.0,93446.0,0.2639334]
[1734976474888,0.000171,93456.0,93446.0,0.2589334]
[1734976475246,0.000171,93456.0,93446.0,0.2609334]
[1734976475449,0.000171,93456.0,93446.0,0.0469064]
[1734976475644,0.000171,93456.0,93446.0,0.2589334]
[1734976475873,0.000171,93456.0,93446.0,0.216027]
[1734976476075,0.000171,93456.0,93433.0,0.0107845]
[1734976476274,0.213972,93470.0,93441.0,0.00015991]
[1734976476479,0.213972,93470.0,93442.0,0.10398632]
[1734976476778,0.004,93456.0,93453.0,0.21401]
[1734976477125,0.004,93456.0,93455.0,0.214006]
[1734976477543,0.15,93474.0,93460.0,0.213993]
[1734976477749,0.0041708,93467.0,93464.0,0.213984]
[1734976477951,0.0041708,93467.0,93460.0,0.213993]
[1734976478158,0.0041708,93467.0,93464.0,0.0258076]
[1734976478357,0.0041708,93467.0,93460.0,0.213993]
[1734976478806,0.0041708,93467.0,93457.0,0.214]
[1734976479013,0.0041708,93467.0,93438.0,0.214044]
[1734976479213,0.214006,93456.0,93442.0,0.214036]
[1734976479422,0.213981,93466.0,93442.0,0.428072]
[1734976479828,0.002,93456.0,93442.0,0.428072]
[1734976479937,0.002,93456.0,93447.0,0.214023]
[1734976480161,0.002,93456.0,93441.0,0.00015991]
[1734976480442,0.213994,93461.0,93441.0,0.00015991]
[1734976481063,0.005,93466.0,93441.0,0.00015991]
[1734976481297,0.214022,93448.0,93447.0,0.002]
[1734976481466,0.0779,93456.0,93447.0,0.002]
[1734976481669,0.291905,93456.0,93447.0,0.002]
[1734976481907,0.214015,93452.0,93447.0,0.002]
[1734976482124,0.214029,93445.0,93441.0,0.00115991]
[1734976482340,0.214029,93445.0,93430.0,0.214062]
[1734976482341,0.214029,93445.0,93404.0,0.05343071]
[1734976482558,0.214047,93438.0,93421.0,0.214083]
[1734976483248,0.214047,93438.0,93421.0,0.428167]
[1734976483809,0.217047,93438.0,93421.0,0.428167]
[1734976484234,0.214047,93437.0,93421.0,0.214083]
[1734976485565,0.218047,93437.0,93421.0,0.214083]
[1734976485979,0.221047,93437.0,93421.0,0.214083]
[1734976486182,0.221047,93437.0,93411.0,0.214105]
[1734976486183,0.21405,93436.0,93411.0,0.214105]
[1734976486583,0.214079,93424.0,93411.0,0.214107]
[1734976486584,0.214068,93428.0,93411.0,0.214107]
[1734976486749,0.214071,93427.0,93411.0,0.214107]
[1734976487145,0.2295,93436.0,93410.0,0.00053335]
[1734976487508,0.214103,93413.0,93410.0,0.00053335]
[1734976487707,0.214096,93416.0,93410.0,0.00053335]
[1734976487911,0.0467,93431.0,93410.0,0.00053335]
[1734976488128,0.15,93426.0,93410.0,0.00053335]
[1734976488266,0.15,93424.0,93411.0,0.001]
[1734976488468,0.15,93422.0,93411.0,0.001]
[1734976488698,0.15,93422.0,93410.0,0.00053335]
[1734976488893,0.22007,93427.0,93411.0,0.214107]
[1734976489098,0.15,93426.0,93410.0,0.00053335]
[1734976489419,0.214073,93426.0,93411.0,0.214107]
[1734976489929,0.009,93416.0,93411.0,0.214107]
[1734976490295,0.009,93416.0,93412.0,0.00107044]
[1734976490495,0.009,93416.0,93413.0,0.53219032]
[1734976490697,0.001,93426.0,93415.0,0.214098]
[1734976490893,0.001,93426.0,93416.0,0.10505661]
[1734976491097,0.001,93426.0,93421.0,0.214084]
[1734976491324,0.293551,93436.0,93421.0,0.214084]
[1734976491518,0.293551,93436.0,93418.0,0.214091]
[1734976491703,0.293551,93436.0,93421.0,0.214084]
[1734976492127,0.214031,93445.0,93425.0,0.214074]
[1734976492301,0.214031,93445.0,93422.0,0.03287732]
[1734976492302,0.15,93444.0,93422.0,0.03180703]
[1734976492505,0.214034,93443.0,93427.0,0.21407]
[1734976492726,0.15,93442.0,93427.0,0.21407]
[1734976493140,0.15,93442.0,93425.0,0.214075]
[1734976493141,0.214036,93442.0,93425.0,0.214075]
[1734976493371,0.0831,93446.0,93423.0,0.10398632]
[1734976493499,0.214038,93441.0,93424.0,0.214077]
[1734976493701,0.214038,93441.0,93424.0,0.31806332]
[1734976494133,0.15,93439.0,93421.0,0.002]
[1734976494365,0.0831,93446.0,93421.0,0.002]
[1734976494570,0.214061,93431.0,93421.0,0.002]
[1734976494763,0.21408,93423.0,93421.0,0.002]
[1734976495018,0.0831,93446.0,93421.0,0.002]
[1734976495216,0.15,93444.0,93421.0,0.002]
[1734976495365,0.15,93442.0,93410.0,0.00177451]
[1734976495584,0.11184251,93439.0,93421.0,0.215082]
[1734976495828,0.15,93440.0,93421.0,0.215082]
[1734976496158,0.15,93440.0,93422.0,0.0429173]
[1734976496509,0.21405,93436.0,93421.0,0.001]
[1734976496940,0.21405,93436.0,93417.0,0.214091]
[1734976497349,0.21405,93436.0,93421.0,0.001]
[1734976497551,0.21405,93436.0,93417.0,0.214091]
[1734976497750,0.21405,93436.0,93419.0,0.214089]
[1734976498140,0.21505,93436.0,93419.0,0.214089]
[1734976498381,0.21406,93432.0,93413.0,0.214102]
[1734976498619,0.214061,93431.0,93413.0,0.31808832]
[1734976498878,0.214061,93431.0,93417.0,0.214093]
[1734976499132,0.214053,93435.0,93417.0,0.214093]
[1734976499861,0.004,93432.0,93417.0,0.214093]
[1734976500331,0.374041,93440.0,93425.0,0.214074]
[1734976500609,0.009,93432.0,93418.0,0.10398632]
[1734976500864,0.009,93432.0,93426.0,0.214071]
[1734976501108,0.018,93432.0,93419.0,0.02311242]
[1734976501476,0.006,93435.0,93417.0,0.09557737]
[1734976501889,0.363944,93439.0,93417.0,0.09557737]
[1734976502143,0.214061,93431.0,93417.0,0.09557737]
[1734976502373,0.214061,93431.0,93414.0,0.52377637]
[1734976502635,0.214061,93431.0,93416.0,0.214096]
[1734976502851,0.10398632,93430.0,93414.0,0.09557737]
[1734976503061,0.214096,93416.0,93414.0,0.09557737]
[1734976503266,0.214107,93411.0,93410.0,0.00070415]
[1734976503713,0.31809332,93411.0,93410.0,0.00070415]
[1734976503916,0.54859332,93411.0,93410.0,0.00070415]
[1734976504348,0.64859332,93411.0,93410.0,0.00070415]
[1734976504541,0.69569332,93411.0,93410.0,0.00070415]
[1734976504968,0.59569332,93411.0,93410.0,0.00070415]
[1734976505386,0.444607,93411.0,93410.0,0.00070415]
[1734976506050,0.447607,93411.0,93410.0,0.00070415]
[1734976506476,0.444607,93411.0,93383.0,0.14121595]
[1734976506680,0.444607,93411.0,93392.0,0.214149]
[1734976506681,0.15,93408.0,93392.0,0.214149]
[1734976507107,0.15,93408.0,93396.0,0.21414]
[1734976507313,0.15,93406.0,93388.0,0.214158]
[1734976507541,0.15,93404.0,93390.0,0.214155]
[1734976507752,0.0825,93411.0,93395.0,0.214141]
[1734976507962,0.214087,93420.0,93402.0,0.214126]
[1734976508201,0.214087,93420.0,93396.0,0.13579905]
[1734976508202,0.001,93408.0,93396.0,0.13579905]
[1734976508410,0.001,93411.0,93405.0,0.21412]
[1734976508615,0.001,93411.0,93402.0,0.10398632]
[1734976508831,0.0808,93422.0,93403.0,0.214125]
[1734976509049,0.002,93420.0,93403.0,0.214125]
[1734976509697,0.214084,93421.0,93403.0,0.214125]
[1734976510339,0.006,93420.0,93403.0,0.214125]
[1734976510540,0.214086,93420.0,93402.0,0.10398632]
[1734976510743,0.214086,93420.0,93403.0,0.214125]
[1734976511603,0.214086,93420.0,93402.0,0.10398632]
[1734976511813,0.2308,93422.0,93403.0,0.214124]
[1734976511992,0.001,93420.0,93404.0,0.214123]
[1734976512256,0.001,93420.0,93403.0,0.03181203]
[1734976512433,0.001,93420.0,93409.0,0.214111]
[1734976512574,0.001,93420.0,93413.0,0.214101]
[1734976512774,0.001,93420.0,93403.0,0.03181203]
[1734976512775,0.001,93420.0,93414.0,0.00107047]
[1734976512983,0.001,93420.0,93417.0,0.428185]
[1734976513183,0.001,93420.0,93417.0,0.53217132]
[1734976513598,8.54e-05,93437.0,93418.0,0.214091]
[1734976513862,8.54e-05,93437.0,93419.0,0.214089]
[1734976513863,0.002,93422.0,93419.0,0.214089]
[1734976514063,0.002,93422.0,93420.0,0.10505662]
[1734976514267,8.54e-05,93437.0,93426.0,0.214072]
[1734976514468,8.54e-05,93437.0,93420.0,0.10398632]
[1734976514674,8.54e-05,93437.0,93423.0,0.214077]
[1734976515941,8.54e-05,93437.0,93421.0,0.214084]
[1734976516070,8.54e-05,93437.0,93422.0,0.10398632]
[1734976516280,0.25146264,93436.0,93419.0,0.214087]
[1734976516503,0.21405,93436.0,93416.0,0.214095]
[1734976516676,0.214071,93427.0,93409.0,0.21411]
[1734976516874,0.214071,93427.0,93402.0,0.22495437]
[1734976516875,0.428161,93423.0,93406.0,0.214117]
[1734976517095,0.428161,93423.0,93406.0,0.428235]
[1734976517096,0.21408,93423.0,93406.0,0.428235]
[1734976517298,0.21408,93423.0,93418.0,8.54e-05]
[1734976517501,0.0030854,93437.0,93418.0,8.54e-05]
[1734976517687,0.15,93435.0,93419.0,0.214089]
[1734976517890,0.009,93427.0,93418.0,8.54e-05]
[1734976518114,0.214073,93426.0,93418.0,8.54e-05]
[1734976518330,0.0223073,93425.0,93418.0,8.54e-05]
[1734976518532,0.0754,93426.0,93418.0,8.54e-05]
[1734976518797,0.214081,93423.0,93418.0,8.54e-05]
[1734976519399,0.0754,93426.0,93418.0,8.54e-05]
[1734976520064,0.0754,93426.0,93418.0,0.0040854]
[1734976520267,0.214066,93429.0,93418.0,0.0040854]
[1734976520467,0.214066,93429.0,93418.0,8.54e-05]
[1734976520651,0.214066,93429.0,93418.0,0.0030854]
[1734976521488,0.214066,93429.0,93409.0,0.21411]
[1734976521690,0.214066,93429.0,93418.0,0.001]
[1734976522204,0.364057,93433.0,93418.0,0.001]
[1734976522205,0.2324854,93437.0,93419.0,0.214089]
[1734976522414,0.15,93435.0,93419.0,0.214089]
[1734976522625,0.0824854,93437.0,93427.0,0.21407]
[1734976522830,0.0824854,93437.0,93418.0,0.001]
[1734976522831,8.54e-05,93437.0,93418.0,0.001]
[1734976523009,8.54e-05,93437.0,93411.0,0.0494]
[1734976523010,8.54e-05,93437.0,93421.0,0.214084]
[1734976523219,8.54e-05,93437.0,93423.0,0.21408]
[1734976523421,0.0030854,93437.0,93423.0,0.21408]
[1734976523832,0.21405,93436.0,93421.0,0.214084]
[1734976524408,0.0010854,93437.0,93409.0,0.10398632]
[1734976524608,0.214089,93419.0,93404.0,0.00016007]
[1734976524846,0.214075,93425.0,93405.0,0.10398632]
[1734976525078,0.214075,93425.0,93410.0,0.214109]
[1734976526008,0.21407,93428.0,93410.0,0.214109]
[1734976526213,0.14027313,93435.0,93407.0,0.214116]
[1734976526378,0.21408,93424.0,93421.0,0.003]
[1734976526585,0.004,93425.0,93405.0,0.10398632]
[1734976526798,0.004,93425.0,93410.0,0.001]
[1734976527001,0.012,93425.0,93410.0,0.001]
[1734976527242,0.23031181,93424.0,93408.0,0.214114]
[1734976527766,0.214057,93433.0,93408.0,0.214114]
[1734976528050,0.214077,93425.0,93410.0,0.004]
[1734976528639,0.15,93435.0,93416.0,0.214095]
[1734976528847,0.2142158,93439.0,93428.0,0.214067]
[1734976528848,0.005,93433.0,93428.0,0.214067]
[1734976529016,0.005,93433.0,93428.0,0.428134]
[1734976529392,0.0001708,93439.0,93431.0,0.214061]
[1734976529608,0.0001708,93439.0,93436.0,0.21405]
[1734976529819,0.0001708,93439.0,93432.0,0.03191176]
[1734976530002,0.0001708,93439.0,93433.0,0.53209932]
[1734976530264,0.0001708,93439.0,93435.0,0.214052]
[1734976530479,0.0001708,93439.0,93433.0,0.53209932]
[1734976530480,0.0001708,93439.0,93433.0,0.214056]
[1734976530729,0.0001708,93439.0,93419.0,0.1]
[1734976530975,0.00061842,93437.0,93436.0,0.005]
[1734976531157,0.00061842,93437.0,93436.0,0.10398632]
[1734976531571,0.00061842,93437.0,93434.0,0.428108]
[1734976531801,0.00061842,93437.0,93434.0,0.53209432]
[1734976532453,0.00056604,93437.0,93436.0,0.21405]
[1734976532658,0.00056604,93437.0,93436.0,0.32203632]
[1734976533070,0.00056604,93437.0,93436.0,0.40363632]
[1734976533695,0.00056604,93437.0,93436.0,0.40463632]
[1734976534095,0.00056604,93437.0,93436.0,0.40063632]
[1734976534310,0.00056604,93437.0,93436.0,0.47914012]
[1734976535166,0.00056604,93437.0,93436.0,0.50314012]
[1734976535377,0.0001708,93467.0,93462.0,0.213989]
[1734976535581,0.00033068,93467.0,93464.0,0.213986]
[1734976535792,0.00033068,93467.0,93465.0,0.15996014]
[1734976536004,0.00033068,93467.0,93466.0,0.236981]
[1734976536233,0.00033068,93467.0,93466.0,0.38606732]
[1734976536443,0.00033068,93467.0,93466.0,0.73606732]
[1734976536656,0.00033068,93467.0,93466.0,0.38606732]
[1734976536870,0.00033068,93467.0,93466.0,0.213981]
[1734976537080,0.00033068,93467.0,93464.0,0.213986]
[1734976537288,0.00033068,93467.0,93466.0,0.006]
[1734976537494,0.00033068,93467.0,93464.0,0.427972]
[1734976537701,0.00033068,93467.0,93462.0,0.09586211]
[1734976537903,0.00033068,93467.0,93466.0,0.005]
[1734976538081,0.00033068,93467.0,93466.0,0.008]
[1734976538958,0.00033068,93467.0,93466.0,0.13605608]
[1734976539183,0.00033068,93467.0,93466.0,0.12805608]
[1734976540260,0.00033068,93467.0,93466.0,0.10598632]
[1734976540669,0.00033068,93467.0,93466.0,0.107056]
[1734976540891,0.00033068,93467.0,93466.0,0.111056]
[1734976541097,0.00033068,93467.0,93466.0,0.10998632]
[1734976541315,0.00033068,93467.0,93466.0,0.11298632]
[1734976541515,0.00033068,93467.0,93466.0,0.12439192]
[1734976541751,0.00033068,93467.0,93466.0,0.1454616]
[1734976542150,0.00133068,93467.0,93466.0,0.1454616]
[1734976542347,0.00133068,93467.0,93466.0,0.134056]
[1734976542565,0.00133068,93467.0,93466.0,0.14198632]
[1734976542729,0.00133068,93467.0,93466.0,0.13298632]
[1734976542938,0.00133068,93467.0,93466.0,0.13405598]
[1734976543149,0.00133068,93467.0,93466.0,0.13805598]
[1734976543350,0.00133068,93467.0,93466.0,0.13405598]
[1734976543616,0.00033068,93467.0,93466.0,0.31046158]
[1734976543786,0.0001714,93481.0,93472.0,0.2]
[1734976543982,0.0001714,93481.0,93480.0,0.32698632]
[1734976544324,0.0001714,93481.0,93480.0,0.12698632]
[1734976544462,0.0001714,93481.0,93480.0,0.10398632]
[1734976544664,0.0001714,93481.0,93480.0,0.11449191]
[1734976544871,0.0001714,93481.0,93480.0,0.13749191]
[1734976545881,0.0001714,93481.0,93480.0,0.48856137]
[1734976546077,0.0001714,93481.0,93480.0,0.48749191]
[1734976546581,0.0812,93521.0,93485.0,0.35]
[1734976546787,0.0812,93521.0,93485.0,0.54073551]
[1734976547562,8.54e-05,93531.0,93490.0,0.2]
[1734976547782,8.54e-05,93531.0,93490.0,0.47805536]
[1734976547994,8.54e-05,93531.0,93490.0,0.47698632]
[1734976548789,8.54e-05,93531.0,93490.0,1.01748632]
[1734976548995,8.54e-05,93531.0,93492.0,0.373]
[1734976549204,8.54e-05,93531.0,93505.0,0.9135]
[1734976549403,0.00033071,93506.0,93505.0,1.01748632]
[1734976550046,0.00033071,93506.0,93505.0,1.26748632]
[1734976550252,0.00033071,93506.0,93505.0,1.26265799]
[1734976550457,8.54e-05,93531.0,93506.0,0.1]
[1734976550659,8.54e-05,93531.0,93509.0,0.023]
[1734976550864,8.54e-05,93531.0,93511.0,0.173]
[1734976551099,8.54e-05,93531.0,93514.0,0.023]
[1734976551307,8.54e-05,93531.0,93517.0,0.023]
[1734976551491,8.54e-05,93531.0,93519.0,0.023]
[1734976551702,8.54e-05,93531.0,93520.0,0.10398632]
[1734976552004,8.54e-05,93531.0,93520.0,0.10505537]
[1734976552138,8.54e-05,93531.0,93521.0,0.173]
[1734976552339,8.54e-05,93531.0,93527.0,0.273]
[1734976552548,8.54e-05,93531.0,93527.0,0.42951184]
[1734976552731,8.54e-05,93531.0,93527.0,0.52951184]
[1734976553440,0.0010854,93528.0,93527.0,0.10398632]
[1734976553686,0.0010854,93528.0,93523.0,0.00106898]
[1734976553889,0.0010854,93528.0,93524.0,0.10398632]
[1734976554349,8.54e-05,93528.0,93524.0,0.10398632]
[1734976554795,0.0020854,93528.0,93524.0,0.10398632]
[1734976555192,0.0020854,93528.0,93518.0,0.01059269]
[1734976555388,0.0020854,93528.0,93502.0,0.00106908]
[1734976555594,0.0020854,93528.0,93504.0,0.15]
[1734976555801,0.0020854,93528.0,93509.0,0.1]
[1734976555998,0.0020854,93528.0,93510.0,0.10505549]
[1734976556210,8.54e-05,93528.0,93511.0,0.03550555]
[1734976556418,8.54e-05,93528.0,93512.0,0.10505538]
[1734976557064,8.54e-05,93528.0,93513.0,0.023]
[1734976557299,8.54e-05,93528.0,93514.0,0.00106908]
[1734976557300,0.0010854,93528.0,93514.0,0.00106908]
[1734976557480,0.0010854,93528.0,93504.0,0.09517167]
[1734976557680,0.0465,93545.0,93505.0,0.1050556]
[1734976557944,0.15,93543.0,93506.0,0.06333281]
[1734976558175,0.15,93541.0,93507.0,0.10505552]
[1734976558348,0.15,93539.0,93507.0,0.10398632]
[1734976558583,0.10398632,93538.0,93500.0,0.00106922]
[1734976558793,0.10398632,93538.0,93508.0,0.10398632]
[1734976559000,0.10398632,93538.0,93509.0,0.00106922]
[1734976559217,0.04703283,93545.0,93512.0,0.001]
[1734976559422,0.04703283,93545.0,93513.0,0.10505543]
[1734976559925,0.003,93538.0,93514.0,0.023]
[1734976560127,0.003,93538.0,93510.0,0.042813]
[1734976560330,0.003,93538.0,93510.0,0.10398632]
[1734976560547,0.04703283,93545.0,93510.0,0.10398632]
[1734976560750,0.0771,93542.0,93511.0,0.10398632]
[1734976560957,0.0771,93542.0,93512.0,0.00106919]
[1734976560958,0.10398632,93541.0,93512.0,0.00106919]
[1734976561180,0.10398632,93541.0,93513.0,0.01050555]
[1734976561385,0.0771,93542.0,93514.0,0.02406911]
[1734976561591,0.0771,93542.0,93515.0,0.10398632]
[1734976561795,0.0771,93542.0,93516.0,0.00106912]
[1734976562001,0.0771,93542.0,93517.0,0.10398632]
[1734976562200,0.0771,93542.0,93518.0,0.01502522]
[1734976562476,0.0771,93542.0,93518.0,0.11901154]
[1734976562643,0.003,93538.0,93518.0,0.11901154]
[1734976563094,0.00053283,93545.0,93519.0,0.12698632]
[1734976563297,0.00053283,93545.0,93520.0,0.00106892]
[1734976563505,0.004,93542.0,93522.0,0.023]
[1734976563718,8.54e-05,93541.0,93523.0,0.10505525]
[1734976563920,8.54e-05,93541.0,93524.0,0.023]
[1734976564247,0.003,93538.0,93525.0,0.10398632]
[1734976564630,0.003,93538.0,93517.0,0.001]
[1734976564769,0.003,93538.0,93518.0,0.15931233]
[1734976565378,8.54e-05,93541.0,93519.0,0.023]
[1734976565628,8.54e-05,93541.0,93520.0,0.10505541]
[1734976565796,0.0010854,93541.0,93521.0,0.023]
[1734976566003,0.0010854,93541.0,93522.0,0.10505536]
[1734976566204,0.0010854,93541.0,93523.0,0.01823123]
[1734976566205,8.54e-05,93541.0,93523.0,0.01823123]
[1734976566400,0.0010854,93541.0,93524.0,0.10505536]
[1734976566869,0.00096223,93541.0,93524.0,0.10505536]
[1734976567238,0.00096223,93541.0,93525.0,0.0793]
[1734976567389,0.00096223,93541.0,93526.0,0.10505521]
[1734976567595,0.00053283,93545.0,93527.0,0.07176125]
[1734976567822,0.00053283,93545.0,93530.0,0.023]
[1734976568017,0.00053283,93545.0,93544.0,0.213803]
[1734976568301,0.00053283,93545.0,93527.0,0.04876125]
[1734976568302,0.213803,93544.0,93527.0,0.04876125]
[1734976568511,0.213803,93544.0,93515.0,0.33906902]
[1734976568512,0.213826,93534.0,93518.0,0.213861]
[1734976568720,0.0808,93543.0,93519.0,0.07017902]
[1734976568936,0.213812,93540.0,93516.0,0.213865]
[1734976569149,0.213829,93533.0,93514.0,0.09517167]
[1734976569355,0.213829,93533.0,93517.0,0.213864]
[1734976569530,0.213824,93535.0,93498.0,0.09517167]
[1734976569531,0.213816,93538.0,93514.0,0.213869]
[1734976569847,0.001,93534.0,93499.0,0.18056497]
[1734976570088,0.213858,93520.0,93506.0,0.213887]
[1734976570280,0.21385,93524.0,93507.0,0.2566645]
[1734976570526,0.21385,93524.0,93511.0,0.213877]
[1734976570702,0.21385,93524.0,93507.0,0.2566645]
[1734976571720,0.213859,93520.0,93507.0,0.0457785]
[1734976572069,0.213859,93520.0,93508.0,0.213885]
[1734976572828,0.213859,93520.0,93507.0,0.003]
[1734976573049,0.1966,93532.0,93507.0,0.003]
[1734976573253,0.427732,93517.0,93507.0,0.003]
[1734976573492,0.213865,93517.0,93498.0,0.213907]
[1734976573881,0.213865,93517.0,93507.0,0.009]
[1734976574050,0.213865,93517.0,93507.0,0.003]
[1734976574245,0.213878,93512.0,93507.0,0.003]
[1734976574452,0.0817,93511.0,93507.0,0.01]
[1734976574619,0.0817,93511.0,93507.0,0.003]
[1734976575032,0.0817,93511.0,93499.0,0.213905]
[1734976575386,0.0817,93511.0,93507.0,0.003]
[1734976575647,0.21388,93510.0,93507.0,0.012]
[1734976576070,0.21388,93510.0,93507.0,0.009]
[1734976576271,0.21388,93510.0,93508.0,0.0001708]
[1734976577070,0.10398632,93509.0,93508.0,0.0001708]
[1734976577308,0.15208632,93509.0,93508.0,0.0001708]
[1734976577949,0.15208632,93509.0,93508.0,0.0031708]
[1734976578132,0.15208632,93509.0,93508.0,0.0001708]
[1734976578961,0.15,93510.0,93508.0,0.0001708]
[1734976579754,0.001,93509.0,93508.0,0.0001708]
[1734976580507,0.003,93509.0,93508.0,0.0001708]
[1734976581118,0.002,93509.0,93508.0,0.0011708]
[1734976581564,0.002,93509.0,93500.0,0.213903]
[1734976581565,0.15,93510.0,93500.0,0.1400738]
[1734976581743,0.15,93516.0,93508.0,0.001]
[1734976582010,0.213869,93515.0,93508.0,0.001]
[1734976582216,0.15,93514.0,93508.0,0.001]
[1734976582603,0.15,93512.0,93508.0,0.001]
[1734976582757,0.15,93514.0,93508.0,0.001]
[1734976582758,0.213878,93511.0,93508.0,0.001]
[1734976582938,0.15,93510.0,93508.0,0.001]
[1734976583145,0.15,93510.0,93496.0,0.21391]
[1734976583350,0.15,93510.0,93489.0,0.213928]
[1734976583558,0.213901,93501.0,93500.0,0.001]
[1734976583762,0.2314,93500.0,93486.0,0.00015991]
[1734976583964,0.21391,93497.0,93486.0,0.00015991]
[1734976584174,0.213924,93492.0,93486.0,0.00015991]
[1734976584375,0.427848,93492.0,93486.0,0.00015991]